bitfinex/quotes_BTCUSD_20251215
["timestamp","ask_amount","ask_price","bid_price","bid_amount"]
[1765758708799,0.00011513,88667.0,88666.0,0.01786]
[1765758708999,0.00011513,88667.0,88666.0,0.002]
[1765758709212,0.00141651,88667.0,88666.0,0.01786]
[1765758709403,0.00141651,88667.0,88666.0,0.04265]
[1765758710287,0.00141651,88667.0,88666.0,0.01786]
[1765758711682,0.00141651,88667.0,88666.0,0.002]
[1765758712253,0.00141651,88667.0,88666.0,0.04265]
[1765758712434,0.00141651,88667.0,88666.0,0.14450286]
[1765758713701,0.00141651,88667.0,88666.0,0.1219463]
[1765758713885,0.00141651,88667.0,88666.0,0.14450286]
[1765758714084,0.00141651,88667.0,88666.0,0.1219463]
[1765758715868,0.0002,88673.0,88666.0,0.21240125]
[1765758716111,0.0002,88673.0,88672.0,0.40373872]
[1765758716112,0.00058367,88673.0,88672.0,0.40373872]
[1765758716314,0.00058367,88673.0,88672.0,0.69443872]
[1765758716519,0.00058367,88673.0,88672.0,0.71871872]
[1765758716762,0.00058367,88673.0,88672.0,0.73659872]
[1765758717574,0.00058367,88673.0,88672.0,0.33358873]
[1765758717915,0.00058367,88673.0,88672.0,0.04014]
[1765758718136,0.00058367,88673.0,88672.0,0.01586]
[1765758718401,0.00058367,88673.0,88672.0,0.04014]
[1765758718760,0.00058367,88673.0,88672.0,0.01586]
[1765758719108,0.00058367,88673.0,88672.0,0.02186]
[1765758719309,0.00058367,88673.0,88672.0,0.01786]
[1765758719682,0.00058367,88673.0,88672.0,0.06669503]
[1765758720324,0.00058367,88673.0,88672.0,0.11671342]
[1765758722152,0.00058367,88673.0,88672.0,0.06202]
[1765758722716,0.00058367,88673.0,88672.0,0.04414]
[1765758723318,0.00058367,88673.0,88672.0,0.004]
[1765758723755,0.00219654,88673.0,88672.0,0.004]
[1765758723960,0.15466259,88673.0,88672.0,0.004]
[1765758724569,0.00219654,88673.0,88672.0,0.002]
[1765758724770,0.00319654,88673.0,88672.0,0.01858]
[1765758724974,0.00319654,88673.0,88672.0,0.002]
[1765758725189,0.01127789,88669.0,88665.0,0.0112784]
[1765758725389,0.01127815,88667.0,88662.0,0.01127878]
[1765758725657,0.01127815,88667.0,88656.0,0.23420922]
[1765758725658,0.01127904,88660.0,88656.0,0.00862]
[1765758725879,0.01127904,88660.0,88649.0,0.01128044]
[1765758725880,0.01127929,88658.0,88649.0,0.01128044]
[1765758726089,0.01128006,88652.0,88649.0,0.01128044]
[1765758726313,0.11399892,88660.0,88648.0,0.2907]
[1765758726314,0.3997,88681.0,88670.0,0.23683266]
[1765758726521,0.02375535,88689.0,88670.0,0.23683266]
[1765758726522,0.0002,88689.0,88672.0,0.15451469]
[1765758726731,0.00058367,88673.0,88672.0,0.26682468]
[1765758726942,0.00058367,88673.0,88672.0,0.29110468]
[1765758727814,0.00058367,88673.0,88672.0,0.29510468]
[1765758728591,0.00058367,88673.0,88672.0,0.29110468]
[1765758728792,0.00058367,88673.0,88672.0,0.29510468]
[1765758729490,0.00058367,88673.0,88672.0,0.29910468]
[1765758729700,0.00058367,88673.0,88672.0,0.29510468]
[1765758729900,0.00058367,88673.0,88672.0,0.29110468]
[1765758730109,0.00058367,88673.0,88672.0,0.29510468]
[1765758730267,0.00058367,88673.0,88672.0,0.58980468]
[1765758730833,0.0002,88689.0,88672.0,0.58980468]
[1765758731058,0.0002,88689.0,88688.0,0.41482803]
[1765758731336,0.0002,88689.0,88688.0,0.43270803]
[1765758731542,0.0002,88689.0,88688.0,0.45698803]
[1765758731947,0.0002,88689.0,88688.0,0.43910803]
[1765758732154,0.0002,88689.0,88688.0,0.34467804]
[1765758732360,0.0002,88689.0,88688.0,0.34867804]
[1765758732570,0.0002,88689.0,88688.0,0.75168803]
[1765758733178,0.0002,88689.0,88688.0,0.63537804]
[1765758733383,0.0002,88689.0,88688.0,0.74968803]
[1765758733836,0.0002,88689.0,88688.0,0.74768803]
[1765758734226,0.0002,88689.0,88688.0,0.75068803]
[1765758734437,0.23769611,88725.0,88688.0,0.75068803]
[1765758734438,0.22539686,88733.0,88714.0,0.33775355]
[1765758734630,0.22539686,88733.0,88714.0,0.42863194]
[1765758734631,0.00021508,88715.0,88714.0,0.42863194]
[1765758735808,0.00021508,88715.0,88714.0,0.42963194]
[1765758736014,0.00021508,88715.0,88714.0,0.42863194]
[1765758736244,0.00021508,88715.0,88701.0,0.22547542]
[1765758736245,0.00021508,88715.0,88690.0,0.00099999]
[1765758736246,0.22550202,88691.0,88690.0,0.00099999]
[1765758736460,0.01127904,88660.0,88650.0,0.06002178]
[1765758736669,0.01127904,88660.0,88644.0,0.01252]
[1765758736670,0.01128006,88652.0,88644.0,0.02380107]
[1765758736876,0.01128069,88647.0,88644.0,0.01252]
[1765758737091,0.23689609,88647.0,88644.0,0.03508215]
[1765758737306,0.01128069,88647.0,88645.0,0.02428]
[1765758737513,0.01128069,88647.0,88646.0,0.01658]
[1765758737939,0.01128044,88649.0,88646.0,0.05214082]
[1765758738153,0.01128044,88649.0,88648.0,0.01658]
[1765758738586,0.22561649,88646.0,88645.0,0.00038367]
[1765758739692,0.22722936,88646.0,88645.0,0.00038367]
[1765758740117,0.28363437,88646.0,88645.0,0.00038367]
[1765758740327,0.22722936,88646.0,88645.0,0.00038367]
[1765758740760,0.34061541,88646.0,88645.0,0.00038367]
[1765758740973,0.63031541,88646.0,88645.0,0.00038367]
[1765758741411,0.63431541,88646.0,88645.0,0.00038367]
[1765758742040,0.63031541,88646.0,88645.0,0.00038367]
[1765758742492,0.63431541,88646.0,88645.0,0.00138367]
[1765758743002,0.63831541,88646.0,88645.0,0.00138367]
[1765758743368,0.63831541,88646.0,88610.0,0.0792963]
[1765758743369,0.22570561,88611.0,88610.0,0.0792963]
[1765758743562,0.22570561,88611.0,88610.0,0.07941143]
[1765758744375,0.22570561,88611.0,88610.0,0.00011513]
[1765758744830,0.22670561,88611.0,88610.0,0.00011513]
[1765758746544,0.22870561,88611.0,88610.0,0.00011513]
[1765758746772,0.22770561,88611.0,88610.0,0.00011513]
[1765758746975,0.22931848,88611.0,88610.0,0.00011513]
[1765758747199,0.34170453,88611.0,88610.0,0.00011513]
[1765758747613,0.34470453,88611.0,88610.0,0.00011513]
[1765758747819,0.34170453,88611.0,88610.0,0.00011513]
[1765758748250,0.35070453,88611.0,88610.0,0.00111513]
[1765758748459,0.34870453,88611.0,88610.0,0.00111513]
[1765758748937,0.35470453,88611.0,88610.0,0.00211513]
[1765758750084,0.24231848,88611.0,88610.0,0.00211513]
[1765758750489,0.24070561,88611.0,88610.0,0.00211513]
[1765758750868,0.015,88611.0,88610.0,0.04225513]
[1765758751547,0.23698692,88613.0,88610.0,0.04025513]
[1765758751750,0.23698692,88613.0,88612.0,0.01606]
[1765758752103,0.23698692,88613.0,88610.0,0.00011513]
[1765758752862,0.23698692,88613.0,88610.0,0.00211513]
[1765758753555,0.24098692,88613.0,88610.0,0.00211513]
[1765758754022,0.23698692,88613.0,88610.0,0.00211513]
[1765758754199,0.24159979,88613.0,88610.0,0.00211513]
[1765758754781,0.11238605,88611.0,88610.0,0.00211513]
[1765758755834,0.11238605,88611.0,88610.0,0.00011513]
[1765758756050,0.23998692,88613.0,88610.0,0.00011513]
[1765758756170,0.23698692,88613.0,88610.0,0.00011513]
[1765758756377,0.11238605,88611.0,88610.0,0.00111513]
[1765758756622,0.11538605,88611.0,88610.0,0.00111513]
[1765758757177,0.11238605,88611.0,88610.0,0.00111513]
[1765758757376,0.11399892,88611.0,88610.0,0.00111513]
[1765758757577,0.12199892,88611.0,88610.0,0.00011513]
[1765758757799,0.11399892,88611.0,88610.0,0.00011513]
[1765758758003,0.11399892,88611.0,88610.0,0.00111513]
[1765758758439,0.11399892,88611.0,88610.0,0.00011513]
[1765758758854,0.11899892,88611.0,88610.0,0.00111513]
[1765758759064,0.11899892,88611.0,88577.0,0.0004]
[1765758759065,0.22578969,88578.0,88577.0,0.0004]
[1765758759268,0.22578969,88578.0,88577.0,0.00051515]
[1765758759420,0.33817574,88578.0,88577.0,0.00051515]
[1765758760637,0.34317574,88578.0,88577.0,0.00051515]
[1765758761005,0.34417574,88578.0,88577.0,0.00451515]
[1765758761414,0.36209574,88578.0,88577.0,0.00451515]
[1765758761658,0.36109574,88578.0,88577.0,0.00051515]
[1765758761951,0.36109574,88578.0,88577.0,0.00151515]
[1765758763767,0.23078969,88578.0,88577.0,0.00151515]
[1765758763954,0.3051147,88578.0,88577.0,0.00151515]
[1765758764163,0.24870969,88578.0,88577.0,0.00151515]
[1765758764371,1.65179574,88578.0,88577.0,1e-08]
[1765758764574,0.22587384,88545.0,88540.0,0.00834014]
[1765758764793,0.22587384,88545.0,88544.0,0.00488111]
[1765758765587,0.23716384,88547.0,88544.0,0.00488111]
[1765758765788,0.23716384,88547.0,88545.0,0.0792963]
[1765758765991,0.23716384,88547.0,88545.0,0.0916563]
[1765758766614,0.23716384,88547.0,88544.0,0.00488111]
[1765758766926,0.23716384,88547.0,88545.0,0.001]
[1765758767471,0.01129318,88549.0,88546.0,0.0792963]
[1765758767729,0.237158,88549.0,88546.0,0.0792963]
[1765758767890,0.22587129,88546.0,88545.0,0.001]
[1765758768515,0.11238605,88545.0,88544.0,0.00488111]
[1765758769907,0.11238605,88545.0,88544.0,0.00588111]
[1765758771305,0.11238605,88545.0,88544.0,0.00688111]
[1765758771507,0.11238605,88545.0,88544.0,0.00588111]
[1765758771778,0.22587129,88546.0,88544.0,0.00488111]
[1765758771984,0.11338605,88545.0,88544.0,0.00488111]
[1765758772850,0.001,88545.0,88544.0,0.00488111]
[1765758773252,0.00161287,88545.0,88544.0,0.00488111]
[1765758774518,0.11499892,88545.0,88544.0,0.00488111]
[1765758775697,0.12499892,88545.0,88544.0,0.00588111]
[1765758776306,0.12399892,88545.0,88544.0,0.00588111]
[1765758776780,0.13299892,88545.0,88544.0,0.00688111]
[1765758776977,1.02061287,88545.0,88544.0,0.00688111]
[1765758777135,1.13299892,88545.0,88544.0,0.00688111]
[1765758777529,1.42369892,88545.0,88544.0,0.00688111]
[1765758777728,1.42369892,88545.0,88540.0,0.00834014]
[1765758777730,1.51658405,88541.0,88540.0,0.00834014]
[1765758778082,1.51658405,88541.0,88521.0,0.0004]
[1765758778084,0.51663253,88522.0,88521.0,0.0004]
[1765758778303,0.64693858,88522.0,88521.0,0.00051508]
[1765758778509,0.22593253,88522.0,88521.0,0.00051508]
[1765758778683,0.24385253,88522.0,88521.0,0.00051508]
[1765758778845,0.30025754,88522.0,88521.0,0.00051508]
[1765758779046,0.35623858,88522.0,88521.0,0.00051508]
[1765758779609,0.36723858,88522.0,88521.0,0.00051508]
[1765758779773,0.35623858,88522.0,88521.0,0.00051508]
[1765758779974,1.35623858,88522.0,88521.0,0.00051508]
[1765758780568,0.57743858,88522.0,88521.0,0.00051508]
[1765758780784,0.58543858,88522.0,88521.0,0.00151508]
[1765758780968,1.65493858,88522.0,88521.0,0.00151508]
[1765758781108,1.66093858,88522.0,88521.0,0.00251508]
[1765758781314,1.65493858,88522.0,88521.0,0.00151508]
[1765758781852,1.66293858,88522.0,88521.0,0.00251508]
[1765758783125,0.64501858,88522.0,88521.0,0.00251508]
[1765758783331,0.24193253,88522.0,88521.0,0.00251508]
[1765758784794,0.35431858,88522.0,88521.0,0.00251508]
[1765758786645,0.24193253,88522.0,88521.0,0.00251508]
[1765758788696,0.24193253,88522.0,88521.0,0.00322198]
[1765758793579,0.35431858,88522.0,88521.0,0.00322198]
[1765758794339,0.24193253,88522.0,88521.0,0.00322198]
[1765758794520,0.35431858,88522.0,88521.0,0.00322198]
[1765758795374,0.016,88522.0,88521.0,0.24543706]
[1765758795585,0.016,88522.0,88521.0,0.15619947]
[1765758795958,0.016,88522.0,88521.0,0.04388198]
[1765758796403,0.008,88522.0,88521.0,0.04288198]
[1765758796614,0.008,88522.0,88521.0,0.02050198]
[1765758796748,0.009,88522.0,88521.0,0.02050198]
[1765758797173,0.001,88522.0,88521.0,0.01950198]
[1765758797583,0.002,88522.0,88521.0,0.02650198]
[1765758797787,0.001,88522.0,88521.0,0.02450198]
[1765758798288,0.002,88522.0,88521.0,0.02850198]
[1765758798489,0.002,88522.0,88521.0,0.01222198]
[1765758799670,0.002,88522.0,88521.0,0.02850198]
[1765758800601,0.002,88522.0,88521.0,0.05288198]
[1765758800960,0.002,88522.0,88521.0,0.02850198]
[1765758801157,0.002,88522.0,88521.0,0.05288198]
[1765758801777,0.11438605,88522.0,88521.0,0.01222198]
[1765758802561,0.002,88522.0,88521.0,0.01222198]
[1765758804122,0.002,88522.0,88521.0,0.02850198]
[1765758804470,0.002,88522.0,88521.0,0.05288198]
[1765758807266,0.002,88522.0,88521.0,0.01222198]
[1765758807536,0.22793253,88522.0,88521.0,0.01222198]
[1765758807770,0.002,88522.0,88521.0,0.01222198]
[1765758811062,0.002,88522.0,88521.0,0.05270198]
[1765758811873,0.002,88522.0,88521.0,0.21503786]
[1765758812075,0.002,88522.0,88521.0,0.50573786]
[1765758812296,0.03004926,88561.0,88521.0,0.50573786]
[1765758812297,0.01129369,88545.0,88538.0,0.01129458]
[1765758812464,0.02434729,88560.0,88535.0,0.01129496]
[1765758812465,0.01129445,88539.0,88537.0,0.01196]
[1765758812686,0.23718614,88539.0,88537.0,0.01196]
[1765758812889,0.23718628,88538.0,88535.0,0.01792]
[1765758813371,0.23718628,88538.0,88532.0,0.01129535]
[1765758813372,0.23718628,88538.0,88533.0,0.2259043]
[1765758813549,0.23718628,88538.0,88535.0,0.01129496]
[1765758813718,0.01129458,88538.0,88537.0,0.003]
[1765758813926,0.01129445,88539.0,88537.0,0.0164]
[1765758814330,0.001,88538.0,88537.0,0.0164]
[1765758814738,0.01129394,88543.0,88538.0,0.01129458]
[1765758814964,0.22586578,88549.0,88545.0,0.01129369]
[1765758815636,0.01129369,88545.0,88541.0,0.0112942]
[1765758815820,0.23716767,88545.0,88540.0,0.01129433]
[1765758816515,0.23716767,88545.0,88537.0,0.004]
[1765758816516,0.2258815,88542.0,88537.0,0.001]
[1765758816694,0.2258815,88542.0,88537.0,0.22589425]
[1765758816904,0.2258815,88542.0,88540.0,0.001]
[1765758817217,0.01529369,88545.0,88541.0,0.23717825]
[1765758817437,0.01429369,88545.0,88541.0,0.23717825]
[1765758817612,0.01129369,88545.0,88541.0,0.23717825]
[1765758817800,0.01129369,88545.0,88542.0,0.02408]
[1765758818197,0.23717022,88544.0,88540.0,0.01129433]
[1765758818395,0.01129382,88544.0,88540.0,0.01129433]
[1765758818666,0.01129394,88543.0,88540.0,0.01129433]
[1765758819371,0.01129394,88543.0,88541.0,0.001]
[1765758819866,0.01129394,88543.0,88540.0,0.01129433]
[1765758820315,0.01229394,88543.0,88540.0,0.01329433]
[1765758820553,0.001,88543.0,88541.0,0.22588405]
[1765758820676,0.001,88543.0,88541.0,0.22688405]
[1765758821163,0.001,88543.0,88540.0,0.01329433]
[1765758821363,0.01229394,88543.0,88540.0,0.003]
[1765758821601,0.01229394,88543.0,88540.0,0.002]
[1765758822021,0.01129394,88543.0,88541.0,0.001]
[1765758822610,0.23817338,88543.0,88541.0,0.002]
[1765758823170,0.23817338,88543.0,88541.0,0.001]
[1765758823993,0.01229394,88543.0,88541.0,0.001]
[1765758824197,0.01229394,88543.0,88541.0,0.002]
[1765758824398,0.001,88543.0,88541.0,0.002]
[1765758825466,0.2258815,88542.0,88541.0,0.002]
[1765758826418,0.23718119,88540.0,88536.0,0.01154068]
[1765758826642,0.01129445,88539.0,88536.0,0.01154068]
[1765758826852,0.01129445,88539.0,88537.0,0.02408]
[1765758826997,0.01129433,88540.0,88537.0,0.02408]
[1765758827194,0.23718596,88539.0,88536.0,0.00024584]
[1765758827398,0.01129445,88539.0,88537.0,0.02408]
[1765758828203,0.01129445,88539.0,88536.0,0.00024584]
[1765758828604,0.01129445,88539.0,88537.0,0.02408]
[1765758829451,0.001,88539.0,88537.0,0.03537471]
[1765758829994,0.01129433,88540.0,88537.0,0.02408]
[1765758830193,0.01129433,88540.0,88537.0,0.02808]
[1765758830394,0.01129433,88540.0,88537.0,0.004]
[1765758830395,0.22689038,88539.0,88537.0,0.004]
[1765758830603,0.11238605,88538.0,88537.0,0.004]
[1765758830774,0.11399892,88538.0,88537.0,0.002]
[1765758831162,0.11399892,88538.0,88537.0,0.004]
[1765758831585,0.22589425,88537.0,88536.0,0.00024584]
[1765758831762,0.35777317,88537.0,88536.0,0.00024584]
[1765758832766,0.35877317,88537.0,88536.0,0.00224584]
[1765758833164,0.35777317,88537.0,88536.0,0.00024584]
[1765758833584,0.36577317,88537.0,88536.0,0.00124584]
[1765758833819,0.65647317,88537.0,88536.0,0.00124584]
[1765758834187,0.66547317,88537.0,88536.0,0.00224584]
[1765758834396,0.65647317,88537.0,88536.0,0.00124584]
[1765758834599,0.65647317,88537.0,88536.0,0.00024584]
[1765758834805,1.65847317,88537.0,88536.0,0.00124584]
[1765758834979,1.66747317,88537.0,88536.0,0.00224584]
[1765758835617,0.66747317,88537.0,88536.0,0.00224584]
[1765758835830,0.81887317,88537.0,88536.0,0.00224584]
[1765758836050,0.24489425,88537.0,88536.0,0.00224584]
[1765758836893,0.3572803,88537.0,88536.0,0.00224584]
[1765758837095,0.3472803,88537.0,88536.0,0.00124584]
[1765758837306,0.3472803,88537.0,88536.0,0.00224584]
[1765758837754,0.3382803,88537.0,88536.0,0.00124584]
[1765758837960,0.3382803,88537.0,88536.0,0.00224584]
[1765758838164,0.3382803,88537.0,88536.0,0.00124584]
[1765758838520,0.3432803,88537.0,88536.0,0.00024584]
[1765758838719,0.3382803,88537.0,88536.0,0.00024584]
[1765758839081,0.3382803,88537.0,88536.0,0.00124584]
[1765758839082,0.3472803,88537.0,88536.0,0.00124584]
[1765758839458,0.34889317,88537.0,88536.0,0.00124584]
[1765758839793,0.25442712,88537.0,88536.0,0.00124584]
[1765758839942,0.36681317,88537.0,88536.0,0.00124584]
[1765758840155,0.37681317,88537.0,88536.0,0.00224584]
[1765758840956,0.37681317,88537.0,88521.0,0.00051508]
[1765758840958,0.22593253,88522.0,88521.0,0.00051508]
[1765758841154,0.64693858,88522.0,88521.0,0.00051508]
[1765758841372,0.64693858,88522.0,88487.0,0.01195]
[1765758841374,0.64693858,88522.0,88474.0,0.06033894]
[1765758841375,1.51669636,88497.0,88474.0,0.06033894]
[1765758841573,1.51669636,88497.0,88496.0,0.00051519]
[1765758841574,1.64700241,88497.0,88496.0,0.00051519]
[1765758842133,1.64700241,88497.0,88462.0,0.01130428]
[1765758842134,1.62908751,88495.0,88462.0,0.01130428]
[1765758842250,1.62908751,88495.0,88494.0,0.00051502]
[1765758842680,0.62908751,88495.0,88494.0,0.00051502]
[1765758842901,0.63070038,88495.0,88494.0,0.00051502]
[1765758843126,0.22600146,88495.0,88494.0,0.00051502]
[1765758843542,0.00161287,88495.0,88494.0,0.00051502]
[1765758843972,0.00161287,88495.0,88494.0,0.00151502]
[1765758843973,0.12399892,88495.0,88494.0,0.00151502]
[1765758844176,0.11399892,88495.0,88494.0,0.00051502]
[1765758844579,0.11499892,88495.0,88494.0,0.00451502]
[1765758844877,0.11599892,88495.0,88494.0,0.00151502]
[1765758845292,0.12299892,88495.0,88494.0,0.00151502]
[1765758845684,0.12899892,88495.0,88494.0,0.00251502]
[1765758846526,0.01661287,88495.0,88494.0,0.00251502]
[1765758846854,0.11999892,88495.0,88494.0,0.00151502]
[1765758847212,0.12699892,88495.0,88494.0,0.00251502]
[1765758849501,1.41769892,88495.0,88494.0,0.00251502]
[1765758850442,1.41769892,88495.0,88456.0,0.25126994]
[1765758850443,0.23739832,88459.0,88456.0,0.0004]
[1765758850643,0.23739832,88459.0,88456.0,0.00078457]
[1765758851302,0.01130467,88459.0,88456.0,0.00078457]
[1765758851479,0.01130416,88463.0,88456.0,0.2268837]
[1765758851703,0.001,88459.0,88456.0,0.2328837]
[1765758851899,0.002,88459.0,88456.0,0.2418837]
[1765758852267,0.002,88459.0,88458.0,0.19178979]
[1765758852794,0.002,88459.0,88458.0,0.1268519]
[1765758853087,0.001,88459.0,88458.0,0.1268519]
[1765758853296,0.001,88463.0,88461.0,0.22608833]
[1765758853708,0.01130352,88468.0,88464.0,0.01130403]
[1765758853915,0.01130352,88468.0,88465.0,0.0906002]
[1765758854118,0.22602701,88485.0,88472.0,0.01130301]
[1765758854323,0.22602701,88485.0,88477.0,0.01130237]
[1765758854324,0.01130186,88481.0,88477.0,0.01130237]
[1765758854463,0.01130198,88480.0,88475.0,0.03390787]
[1765758854662,0.01130198,88480.0,88476.0,0.0113025]
[1765758854663,0.01130211,88479.0,88476.0,0.0113025]
[1765758854870,0.01130211,88479.0,88475.0,0.04737525]
[1765758854871,0.01130224,88478.0,88475.0,0.04737525]
[1765758855070,0.01130224,88478.0,88475.0,0.02260525]
[1765758855485,0.23734713,88478.0,88477.0,0.01575]
[1765758855687,0.01130237,88477.0,88474.0,0.02260551]
[1765758856313,0.01130237,88477.0,88475.0,0.001]
[1765758856753,0.23735076,88477.0,88475.0,0.001]
[1765758856875,0.0113025,88476.0,88474.0,0.006]
[1765758857071,0.0113025,88476.0,88474.0,0.008]
[1765758857275,0.0113025,88476.0,88474.0,0.002]
[1765758857756,0.0113025,88476.0,88475.0,0.003]
[1765758857976,0.01130288,88473.0,88469.0,0.01130339]
[1765758858147,0.001,88476.0,88475.0,0.01575]
[1765758858445,0.001,88476.0,88475.0,0.03835525]
[1765758858446,0.003,88476.0,88475.0,0.03835525]
[1765758858617,0.003,88476.0,88475.0,0.06312525]
[1765758859027,0.003,88476.0,88475.0,0.06500111]
[1765758859235,0.002,88476.0,88475.0,0.04239586]
[1765758859418,0.01130173,88482.0,88479.0,0.01130211]
[1765758859614,0.01130173,88482.0,88481.0,0.00169124]
[1765758859836,0.2373322,88484.0,88481.0,0.00169124]
[1765758860076,0.2373322,88484.0,88479.0,0.02325211]
[1765758860299,0.0113016,88483.0,88480.0,0.09059828]
[1765758860511,0.2373237,88487.0,88480.0,0.09059828]
[1765758860512,0.2479,88529.0,88495.0,0.01130007]
[1765758860621,0.2479,88529.0,88480.0,0.1040663]
[1765758860622,0.23729198,88499.0,88496.0,0.01195]
[1765758860827,0.01129943,88500.0,88496.0,0.24924881]
[1765758861047,0.0112993,88501.0,88498.0,0.01129969]
[1765758861268,0.01129917,88502.0,88499.0,0.01129956]
[1765758861468,0.22591722,88528.0,88498.0,0.01129969]
[1765758861469,0.01129828,88509.0,88506.0,0.01129866]
[1765758861855,0.01129828,88509.0,88506.0,0.03606866]
[1765758862200,0.01129828,88509.0,88505.0,0.01195]
[1765758862201,0.23726668,88508.0,88505.0,0.01195]
[1765758862541,0.23726668,88508.0,88499.0,0.66695586]
[1765758862542,0.01129879,88505.0,88501.0,0.0112993]
[1765758862789,0.0112979,88512.0,88496.0,0.02324994]
[1765758862790,0.001,88499.0,88496.0,0.02324994]
[1765758863194,0.2372887,88500.0,88496.0,0.02324994]
[1765758863389,0.01129956,88499.0,88496.0,0.01195]
[1765758863747,0.01129956,88499.0,88495.0,0.002]
[1765758863748,0.2259938,88498.0,88495.0,0.002]
[1765758863984,0.23729349,88498.0,88495.0,0.00011533]
[1765758864195,0.01129943,88500.0,88496.0,0.003]
[1765758864392,0.01129956,88499.0,88496.0,0.004]
[1765758864731,0.01129956,88499.0,88496.0,0.02577]
[1765758865008,0.0112993,88501.0,88498.0,0.01575]
[1765758865979,0.01129892,88504.0,88499.0,0.01129956]
[1765758866182,0.11238605,88506.0,88503.0,0.01129905]
[1765758866616,0.01129917,88502.0,88498.0,0.01129969]
[1765758866791,0.01129943,88500.0,88496.0,0.01129994]
[1765758867147,0.01129956,88499.0,88496.0,0.01129994]
[1765758867816,0.0112993,88501.0,88498.0,0.01561]
[1765758868640,0.0112993,88501.0,88499.0,0.0792963]
[1765758868860,0.11238605,88498.0,88497.0,0.01129981]
[1765758869063,0.001,88499.0,88497.0,0.01129981]
[1765758869506,0.01129943,88500.0,88497.0,0.01129981]
[1765758869704,0.12368548,88500.0,88497.0,0.01129981]
[1765758870130,0.12368548,88500.0,88499.0,0.002]
[1765758870587,0.01129917,88502.0,88498.0,0.01129969]
[1765758871270,0.01129956,88499.0,88496.0,0.0792963]
[1765758871709,0.11238605,88496.0,88495.0,0.00011533]
[1765758872143,0.11238605,88496.0,88495.0,0.00137587]
[1765758872994,0.23729349,88498.0,88495.0,0.00137587]
[1765758873211,0.23729349,88498.0,88495.0,0.00011533]
[1765758873422,0.22599891,88496.0,88495.0,0.00011533]
[1765758873636,0.22699891,88496.0,88495.0,0.00311533]
[1765758873845,0.33938496,88496.0,88495.0,0.00311533]
[1765758874468,0.34038496,88496.0,88495.0,0.00311533]
[1765758875124,0.22699891,88496.0,88495.0,0.00011533]
[1765758875337,0.33938496,88496.0,88495.0,0.00211533]
[1765758875798,0.33938496,88496.0,88495.0,0.00011533]
[1765758876221,0.34038496,88496.0,88495.0,0.00211533]
[1765758881171,0.63108496,88496.0,88495.0,0.00211533]
[1765758881771,0.63108496,88496.0,88495.0,0.00337587]
[1765758882186,0.63008496,88496.0,88495.0,0.00337587]
[1765758882418,0.62908496,88496.0,88495.0,0.00137587]
[1765758882622,0.65008496,88496.0,88495.0,0.00337587]
[1765758888401,0.35938496,88496.0,88495.0,0.00337587]
[1765758895529,0.37730496,88496.0,88495.0,0.00337587]
[1765758896378,0.35938496,88496.0,88495.0,0.00337587]
[1765758897348,0.13338605,88496.0,88495.0,0.00337587]
[1765758901284,0.021,88496.0,88495.0,0.00337587]
[1765758901491,1.1439275,88496.0,88495.0,0.00337587]
[1765758901713,1.1439275,88496.0,88463.0,0.01195]
[1765758901714,1.1439275,88496.0,88464.0,0.06033894]
[1765758901715,0.22607555,88466.0,88464.0,0.06033894]
[1765758901924,0.22607555,88466.0,88454.0,0.01130531]
[1765758901925,0.11238605,88457.0,88454.0,0.01130531]
[1765758902144,0.11238605,88465.0,88456.0,0.01208962]
[1765758902339,0.11238605,88473.0,88472.0,0.01130301]
[1765758902719,0.11238605,88473.0,88472.0,0.06196301]
[1765758902873,0.01130173,88482.0,88476.0,0.0113025]
[1765758902874,0.01130198,88480.0,88476.0,0.0113025]
[1765758903073,0.01130198,88480.0,88478.0,0.01625]
[1765758903735,0.22604233,88479.0,88478.0,0.01625]
[1765758903952,0.0113025,88476.0,88471.0,0.2373651]
[1765758904360,0.11238605,88473.0,88472.0,0.01146]
[1765758904555,0.11238605,88473.0,88466.0,0.23737881]
[1765758904556,0.11238605,88466.0,88465.0,0.0406839]
[1765758904945,0.11238605,88467.0,88466.0,0.01130377]
[1765758905140,0.11238605,88467.0,88466.0,0.03425377]
[1765758905345,0.11238605,88467.0,88466.0,0.0392]
[1765758906502,0.11238605,88467.0,88465.0,0.02938]
[1765758906503,0.01130352,88468.0,88465.0,0.01792]
[1765758906686,0.11238605,88457.0,88456.0,0.00078457]
[1765758907027,0.01130441,88461.0,88456.0,0.00078457]
[1765758907028,0.22609665,88458.0,88456.0,0.00078457]
[1765758907338,0.11238605,88457.0,88456.0,0.00078457]
[1765758908171,0.11338605,88457.0,88456.0,0.00578457]
[1765758908555,0.11338605,88457.0,88456.0,0.00698443]
[1765758908758,0.11438605,88457.0,88456.0,0.01198443]
[1765758909236,0.11338605,88457.0,88456.0,0.00698443]
[1765758909683,0.11438605,88457.0,88456.0,0.01198443]
[1765758910417,0.002,88457.0,88456.0,0.01198443]
[1765758910618,0.11438605,88457.0,88456.0,0.01198443]
[1765758911054,0.002,88457.0,88456.0,0.02823443]
[1765758911287,0.002,88457.0,88456.0,0.01198443]
[1765758911646,0.11338605,88457.0,88456.0,0.00698443]
[1765758911823,0.11438605,88457.0,88456.0,0.01298443]
[1765758912442,0.11338605,88457.0,88456.0,0.00798443]
[1765758912647,0.11338605,88457.0,88456.0,0.01298443]
[1765758912971,0.11438605,88457.0,88456.0,0.01298443]
[1765758914396,0.002,88457.0,88456.0,0.01298443]
[1765758914599,0.11438605,88457.0,88456.0,0.01298443]
[1765758915242,0.11338605,88457.0,88456.0,0.00698443]
[1765758915444,0.11238605,88457.0,88456.0,0.00198443]
[1765758915749,0.11238605,88457.0,88456.0,0.00298443]
[1765758915750,0.11938605,88457.0,88456.0,0.00298443]
[1765758915969,0.12638605,88457.0,88456.0,0.00398443]
[1765758916121,1.014,88457.0,88456.0,0.00398443]
[1765758916326,1.12638605,88457.0,88456.0,0.00398443]
[1765758919816,0.014,88457.0,88456.0,0.00398443]
[1765758920017,0.1369275,88457.0,88456.0,0.00398443]
[1765758923247,0.1548475,88457.0,88456.0,0.00398443]
[1765758928633,0.14430605,88457.0,88456.0,0.00398443]
[1765758928831,0.1548475,88457.0,88456.0,0.00398443]
[1765758929033,1.1548475,88457.0,88456.0,0.00398443]
[1765758929267,1.14430605,88457.0,88456.0,0.00398443]
[1765758930933,1.43500605,88457.0,88456.0,0.00398443]
[1765758931518,1.43500605,88457.0,88445.0,0.0004]
[1765758931519,0.22610111,88456.0,88445.0,0.0004]
[1765758931727,0.62921272,88446.0,88445.0,0.0004]
[1765758931847,1.64713272,88446.0,88445.0,0.0005154]
[1765758933614,1.65313272,88446.0,88445.0,0.0015154]
[1765758934025,1.67746426,88446.0,88445.0,0.0015154]
[1765758934706,0.01130722,88439.0,88433.0,0.0004]